[Event "28th North American Open"]
[Site "Las Vegas"]
[Date "2018.12.29"]
[Round "7"]
[White "Wang, Annie"]
[Black "Karthik Venkataraman"]
[Result "1-0"]
[ECO "A43"]
[WhiteElo "2303"]
[BlackElo "2527"]
[PlyCount "151"]
[EventDate "2018.12.??"]
[EventType "swiss"]
[EventRounds "9"]
[EventCountry "USA"]
[TimeControl "6600+10"]
[WhiteClock "0:04:48"]
[BlackClock "0:04:40"]

1. d4 {[%emt 0:19:40]} c5 2. d5 {[%emt 0:01:06]} g6 {[%emt 0:20:10]} 3. c4 {
[%emt 0:00:38]} Bg7 {[%emt 0:00:00]} 4. e4 {[%emt 0:05:44]} d6 {[%emt 0:00:00]}
5. Bd3 {[%emt 0:00:50]} e6 {[%emt 0:00:00]} 6. Nc3 {[%emt 0:06:41]} Nf6 {
[%emt 0:00:03]} 7. h3 {[%emt 0:00:38]} O-O {[%emt 0:00:00]} 8. Nf3 {[%emt 0:00:
03]} Re8 {[%emt 0:00:00]} 9. O-O {[%emt 0:00:47]} Na6 {[%emt 0:00:00]} 10. Re1
{[%emt 0:10:23]} Nc7 {[%emt 0:00:00]} 11. Qc2 {[%emt 0:05:26]} Rb8 {[%emt 0:00:
00]} 12. dxe6 {[%emt 0:07:37]} Nxe6 {[%emt 0:00:00]} 13. Be3 {[%emt 0:00:23]}
b6 {[%emt 0:00:46]} 14. Rad1 {[%emt 0:02:14]} Bb7 {[%emt 0:00:01]} 15. Bf1 {
[%emt 0:04:42]} Qe7 {[%emt 0:00:00]} 16. Nd5 {[%emt 0:04:37]} Qf8 {[%emt 0:00:
00]} 17. Nc3 {[%emt 0:05:59]} Rbd8 {[%emt 0:01:42]} 18. g3 {[%emt 0:07:01]} Nd7
{[%emt 0:01:34]} 19. Nd5 {[%emt 0:01:53]} Ne5 {[%emt 0:00:25]} 20. Nd2 {
[%emt 0:04:00]} Nc6 {[%emt 0:00:00]} 21. Bg2 {[%emt 0:00:00]} Kh8 {[%emt 0:19:
12]} 22. Qb1 {[%emt 0:04:36]} Ne7 {[%emt 0:03:18]} 23. Nxe7 {[%emt 0:04:44]}
Qxe7 {[%emt 0:01:54]} 24. Nf3 {[%emt 0:01:56]} Bc6 {[%emt 0:01:08]} 25. b3 {
[%emt 0:07:00]} Qb7 {[%emt 0:00:00]} 26. Bc1 {[%emt 0:03:17]} Kg8 {[%emt 0:00:
00]} 27. Qd3 {[%emt 0:00:36]} a6 {[%emt 0:00:00]} 28. Re2 {[%emt 0:00:00]} b5 {
[%emt 0:00:00]} 29. Rde1 {[%emt 0:00:00]} Rd7 {[%emt 0:01:23]} 30. Bd2 {
[%emt 0:01:05]} Rde7 {[%emt 0:05:29]} 31. Bc3 {[%emt 0:00:00]} Bxc3 {[%emt 0:
00:02]} 32. Qxc3 {[%emt 0:00:00]} Nf8 {[%emt 0:00:00]} 33. Nh4 {[%emt 0:00:00]}
bxc4 {[%emt 0:02:30]} 34. bxc4 {[%emt 0:00:00]} Bxe4 {[%emt 0:00:22]} 35. Qb3 {
[%emt 0:00:00]} Qc6 {[%emt 0:21:13]} 36. f3 {[%emt 0:00:00]} d5 {[%emt 0:00:00]
} 37. fxe4 {[%emt 0:00:00]} dxe4 {[%emt 0:00:00]} 38. Qc2 {[%emt 0:00:00]} f5 {
[%emt 0:00:00]} 39. Qc3 {[%emt 0:00:00]} Ne6 {[%emt 0:03:39]} 40. Re3 {[%emt 0:
01:54]} Nd4 {[%emt 0:08:49]} 41. Nf3 {[%emt 0:00:00]} Qf6 {[%emt 0:01:35]} 42.
Nd2 {[%emt 0:00:00]} g5 {[%emt 0:00:09]} 43. Kh1 {[%emt 0:00:15]} h5 {[%emt 0:
00:00]} 44. Rf1 {[%emt 0:00:00]} Qd6 {[%emt 0:03:00]} 45. Rfe1 {[%emt 0:00:06]}
a5 {[%emt 0:02:14]} 46. Nxe4 {[%emt 0:00:00]} fxe4 {[%emt 0:00:00]} 47. Bxe4 {
[%emt 0:00:00]} a4 {[%emt 0:00:58]} 48. Bd5+ {[%emt 0:00:00]} Kg7 {[%emt 0:00:
00]} 49. Qd2 {[%emt 0:00:00]} Rxe3 {[%emt 0:01:30]} 50. Rxe3 {[%emt 0:00:00]}
Re5 {[%emt 0:02:37]} 51. Qf2 {[%emt 0:00:00]} Rxe3 {[%emt 0:07:43]} 52. Qxe3 {
[%emt 0:00:00]} Qf6 {[%emt 0:00:00]} 53. Kg2 {[%emt 0:00:00]} h4 {[%emt 0:00:
00]} 54. g4 {[%emt 0:02:37]} Kf8 {[%emt 0:00:00]} 55. Qa3 {[%emt 0:00:00]} Qe7
{[%emt 0:00:00]} 56. Bf3 {[%emt 0:00:10]} Qd6 {[%emt 0:04:14]} 57. Bd1 {
[%emt 0:00:00]} Ne6 {[%emt 0:01:22]} 58. Bxa4 {[%emt 0:00:08]} Nf4+ {[%emt 0:
00:05]} 59. Kf1 {[%emt 0:00:00]} Qd4 {[%emt 0:00:00]} 60. Qb3 {[%emt 0:00:00]}
Nd3 {[%emt 0:00:24]} 61. Qb8+ {[%emt 0:00:00]} Kg7 {[%emt 0:00:00]} 62. Qb7+ {
[%emt 0:00:12]} Kf6 {[%emt 0:00:00]} 63. Qf3+ {[%emt 0:00:07]} Nf4 {[%emt 0:00:
13]} 64. Qc6+ {[%emt 0:00:00]} Ke5 {[%emt 0:00:00]} 65. Qe8+ {[%emt 0:00:00]}
Ne6 {[%emt 0:00:00]} 66. Qb8+ {[%emt 0:00:03]} Ke4 {[%emt 0:00:00]} 67. Bc2+ {
[%emt 0:00:00]} Ke3 {[%emt 0:00:00]} 68. Qb3+ {[%emt 0:00:00]} Kd2 {[%emt 0:00:
00]} 69. Bf5 {[%emt 0:00:00]} Qa1+ {[%emt 0:00:00]} 70. Kg2 {[%emt 0:00:00]}
Nf4+ {[%emt 0:00:00]} 71. Kh2 {[%emt 0:00:00]} Ne2 {[%emt 0:01:33]} 72. Qc2+ {
[%emt 0:00:00]} Ke1 {[%emt 0:00:00]} 73. Kg2 {[%emt 0:00:00]} Nf4+ {[%emt 0:00:
00]} 74. Kf3 {[%emt 0:00:00]} Qd1+ {[%emt 0:00:00]} 75. Qxd1+ {[%emt 0:00:00]}
Kxd1 {[%emt 0:00:00]} 76. a4 {[%emt 0:00:00]} 1-0

[Event "28th North American Open"]
[Site "Las Vegas"]
[Date "2018.12.29"]
[Round "7"]
[White "Becerra Rivero, Julio"]
[Black "Bitoon, Richard"]
[Result "1-0"]
[ECO "B66"]
[WhiteElo "2520"]
[BlackElo "2455"]
[PlyCount "71"]
[EventDate "2018.12.??"]
[EventType "swiss"]
[EventRounds "9"]
[EventCountry "USA"]
[TimeControl "6600+10"]
[WhiteClock "0:09:43"]
[BlackClock "0:14:36"]

1. e4 {[%emt 0:19:40]} c5 {[%emt 0:20:04]} 2. Nf3 {[%emt 0:00:00]} d6 {[%emt 0:
00:00]} 3. d4 {[%emt 0:00:00]} cxd4 {[%emt 0:00:00]} 4. Nxd4 {[%emt 0:00:00]}
Nf6 {[%emt 0:00:00]} 5. Nc3 {[%emt 0:00:00]} Nc6 {[%emt 0:00:00]} 6. Bg5 {
[%emt 0:00:00]} e6 {[%emt 0:00:00]} 7. Qd2 {[%emt 0:00:00]} a6 {[%emt 0:00:00]}
8. O-O-O {[%emt 0:00:00]} h6 {[%emt 0:00:34]} 9. Bf4 {[%emt 0:03:31]} Bd7 {
[%emt 0:01:56]} 10. Nxc6 {[%emt 0:01:41]} Bxc6 {[%emt 0:00:00]} 11. f3 {
[%emt 0:00:11]} d5 {[%emt 0:02:09]} 12. Qe1 {[%emt 0:01:38]} Bb4 {[%emt 0:00:
43]} 13. Bd2 {[%emt 0:07:29]} O-O {[%emt 0:02:16]} 14. a3 {[%emt 0:06:11]} Be7
{[%emt 0:03:28]} 15. e5 {[%emt 0:00:00]} Nd7 {[%emt 0:00:00]} 16. f4 {[%emt 0:
00:00]} b5 {[%emt 0:01:14]} 17. Ne2 {[%emt 0:00:08]} a5 {[%emt 0:09:09]} 18.
Nd4 {[%emt 0:00:00]} Nb8 {[%emt 0:13:35]} 19. Nxb5 {[%emt 0:06:52]} Qb6 {
[%emt 0:11:34]} 20. Be3 {[%emt 0:00:57]} Qb7 {[%emt 0:00:19]} 21. Nd6 {[%emt 0:
01:59]} Qc7 {[%emt 0:04:45]} 22. f5 {[%emt 0:05:46]} Nd7 {[%emt 0:13:33]} 23.
f6 {[%emt 0:20:44]} Nxf6 {[%emt 0:07:14]} 24. Qg3 {[%emt 0:01:22]} Rfb8 {
[%emt 0:18:57]} 25. Bd3 {[%emt 0:08:52]} Bxd6 {[%emt 0:00:00]} 26. exd6 {
[%emt 0:00:00]} Qb7 {[%emt 0:00:00]} 27. Bd4 {[%emt 0:00:05]} Ne8 {[%emt 0:00:
00]} 28. Be5 {[%emt 0:09:51]} Rc8 {[%emt 0:00:00]} 29. Rhf1 {[%emt 0:00:47]}
Rab8 {[%emt 0:00:00]} 30. d7 {[%emt 0:05:37]} Bxd7 {[%emt 0:00:00]} 31. Rxf7 {
[%emt 0:00:16]} Kxf7 {[%emt 0:00:00]} 32. Rf1+ {[%emt 0:00:00]} Ke7 {[%emt 0:
00:00]} 33. Qh4+ {[%emt 0:00:00]} g5 {[%emt 0:00:00]} 34. Qxh6 {[%emt 0:00:00]}
Rxc2+ {[%emt 0:00:00]} 35. Bxc2 {[%emt 0:00:00]} Kd8 {[%emt 0:00:00]} 36. Rf3 {
[%emt 0:02:40]} 1-0

[Event "28th North American Open"]
[Site "Las Vegas"]
[Date "2018.12.29"]
[Round "7"]
[White "Wang, Jason"]
[Black "Mulyar, Michael"]
[Result "0-1"]
[ECO "D11"]
[WhiteElo "2241"]
[BlackElo "2398"]
[PlyCount "112"]
[EventDate "2018.12.??"]
[EventType "swiss"]
[EventRounds "9"]
[EventCountry "USA"]
[TimeControl "6600+10"]
[WhiteClock "0:00:34"]
[BlackClock "1:12:36"]

1. d4 {[%emt 0:19:40]} d5 {[%emt 0:19:52]} 2. c4 {[%emt 0:00:00]} c6 {[%emt 0:
00:00]} 3. Nf3 {[%emt 0:00:00]} Nf6 {[%emt 0:00:00]} 4. Qc2 {[%emt 0:00:00]}
dxc4 {[%emt 0:00:00]} 5. Qxc4 {[%emt 0:00:00]} Bf5 {[%emt 0:00:00]} 6. g3 {
[%emt 0:00:00]} e6 {[%emt 0:00:00]} 7. Bg2 {[%emt 0:00:00]} Be7 {[%emt 0:00:00]
} 8. O-O {[%emt 0:00:00]} O-O {[%emt 0:00:00]} 9. Qb3 {[%emt 0:00:00]} Qb6 {
[%emt 0:00:00]} 10. Nbd2 {[%emt 0:00:00]} Nbd7 {[%emt 0:00:00]} 11. Nc4 {
[%emt 0:00:00]} Qa6 {[%emt 0:00:00]} 12. Bf4 {[%emt 0:00:00]} Nb6 {[%emt 0:00:
00]} 13. Bd6 {[%emt 0:00:00]} Bxd6 {[%emt 0:00:00]} 14. Nxd6 {[%emt 0:00:00]}
Rad8 {[%emt 0:00:00]} 15. Nxf5 {[%emt 0:00:00]} exf5 {[%emt 0:00:00]} 16. e3 {
[%emt 0:00:00]} Nbd5 {[%emt 0:00:00]} 17. Ne5 {[%emt 0:00:35]} Qb6 {[%emt 0:00:
00]} 18. Qxb6 {[%emt 0:05:05]} axb6 {[%emt 0:00:00]} 19. Rac1 {[%emt 0:07:40]}
Rfe8 {[%emt 0:00:00]} 20. Nd3 {[%emt 0:04:28]} g6 {[%emt 0:00:50]} 21. Rfd1 {
[%emt 0:02:08]} Kg7 {[%emt 0:00:00]} 22. Nf4 {[%emt 0:04:52]} Ne4 {[%emt 0:05:
30]} 23. Nxd5 {[%emt 0:02:08]} Rxd5 {[%emt 0:00:00]} 24. h4 {[%emt 0:08:15]} h5
{[%emt 0:02:46]} 25. a3 {[%emt 0:03:55]} Red8 {[%emt 0:02:26]} 26. Re1 {
[%emt 0:04:01]} Ra8 {[%emt 0:05:53]} 27. Re2 {[%emt 0:01:29]} b5 {[%emt 0:03:
01]} 28. Rec2 {[%emt 0:01:56]} b4 {[%emt 0:03:01]} 29. Bxe4 {[%emt 0:03:10]}
fxe4 {[%emt 0:00:00]} 30. axb4 {[%emt 0:00:24]} Rb5 {[%emt 0:00:00]} 31. Rc4 {
[%emt 0:21:33]} Ra4 {[%emt 0:00:00]} 32. Kf1 {[%emt 0:01:11]} Raxb4 {[%emt 0:
00:00]} 33. Rxb4 {[%emt 0:00:00]} Rxb4 {[%emt 0:00:00]} 34. Rc2 {[%emt 0:03:22]
} Kf6 {[%emt 0:00:00]} 35. Ke2 {[%emt 0:02:30]} Rb5 {[%emt 0:00:00]} 36. Ke1 {
[%emt 0:02:44]} Kf5 {[%emt 0:00:00]} 37. Kf1 {[%emt 0:00:05]} f6 {[%emt 0:00:
10]} 38. Kg2 {[%emt 0:01:28]} Kg4 {[%emt 0:00:00]} 39. Rd2 {[%emt 0:11:33]} g5
{[%emt 0:00:00]} 40. hxg5 {[%emt 0:00:00]} fxg5 {[%emt 0:00:00]} 41. Rc2 {
[%emt 0:01:10]} h4 {[%emt 0:00:00]} 42. Re2 {[%emt 0:00:00]} hxg3 {[%emt 0:01:
01]} 43. fxg3 {[%emt 0:00:00]} Rf5 {[%emt 0:00:00]} 44. b4 {[%emt 0:00:10]} Rf3
{[%emt 0:00:00]} 45. b5 {[%emt 0:00:13]} Rxg3+ {[%emt 0:00:00]} 46. Kf2 {
[%emt 0:00:00]} Kh3 {[%emt 0:00:05]} 47. Kf1 {[%emt 0:00:16]} g4 {[%emt 0:00:
00]} 48. bxc6 {[%emt 0:00:00]} bxc6 {[%emt 0:00:00]} 49. Rc2 {[%emt 0:00:05]}
Rf3+ {[%emt 0:01:56]} 50. Kg1 {[%emt 0:00:19]} Rxe3 {[%emt 0:00:19]} 51. Rxc6 {
[%emt 0:00:42]} Rd3 {[%emt 0:00:00]} 52. Kf2 {[%emt 0:00:38]} g3+ {[%emt 0:00:
00]} 53. Ke2 {[%emt 0:00:00]} g2 {[%emt 0:00:44]} 54. Rh6+ {[%emt 0:00:00]} Kg3
{[%emt 0:00:00]} 55. Rg6+ {[%emt 0:00:00]} Kh2 {[%emt 0:00:00]} 56. Kf2 {
[%emt 0:01:01]} Rf3+ {[%emt 0:00:00]} 0-1

[Event "28th North American Open"]
[Site "Las Vegas"]
[Date "2018.12.29"]
[Round "7"]
[White "Sam, Gabriel"]
[Black "Vivekananthan, Anish"]
[Result "0-1"]
[ECO "E10"]
[WhiteElo "2185"]
[BlackElo "2294"]
[PlyCount "57"]
[EventDate "2018.12.??"]
[EventType "swiss"]
[EventRounds "9"]
[EventCountry "USA"]
[TimeControl "6600+10"]
[WhiteClock "0:29:29"]
[BlackClock "0:07:40"]

1. d4 {[%emt 0:19:40]} Nf6 {[%emt 0:19:55]} 2. c4 {[%emt 0:00:00]} e6 {[%emt 0:
00:00]} 3. Nf3 {[%emt 0:00:00]} d5 {[%emt 0:00:00]} 4. cxd5 {[%emt 0:00:00]}
exd5 {[%emt 0:00:00]} 5. Nc3 {[%emt 0:00:00]} Bb4 {[%emt 0:00:00]} 6. Bg5 {
[%emt 0:03:30]} h6 {[%emt 0:00:00]} 7. Bxf6 {[%emt 0:03:37]} Qxf6 {[%emt 0:00:
00]} 8. a3 {[%emt 0:00:00]} Bxc3+ {[%emt 0:00:00]} 9. bxc3 {[%emt 0:00:00]} c5
{[%emt 0:01:58]} 10. e3 {[%emt 0:01:18]} Nc6 {[%emt 0:01:33]} 11. Bb5 {[%emt 0:
02:29]} O-O {[%emt 0:09:22]} 12. O-O {[%emt 0:01:14]} c4 {[%emt 0:22:33]} 13.
h3 {[%emt 0:08:36]} Bf5 {[%emt 0:00:12]} 14. Ba4 {[%emt 0:02:27]} Rab8 {
[%emt 0:06:11]} 15. Bc2 {[%emt 0:03:05]} b5 {[%emt 0:00:24]} 16. Re1 {[%emt 0:
01:59]} Rfe8 {[%emt 0:00:04]} 17. Nd2 {[%emt 0:02:13]} Bxc2 {[%emt 0:12:12]}
18. Qxc2 {[%emt 0:00:00]} a5 {[%emt 0:00:00]} 19. e4 {[%emt 0:02:49]} Qd6 {
[%emt 0:00:00]} 20. exd5 {[%emt 0:02:05]} Qxd5 {[%emt 0:00:00]} 21. Nf1 {
[%emt 0:14:14]} Rxe1 {[%emt 0:19:37]} 22. Rxe1 {[%emt 0:00:00]} Qd6 {[%emt 0:
00:00]} 23. a4 {[%emt 0:05:08]} b4 {[%emt 0:02:02]} 24. Ne3 {[%emt 0:10:21]}
bxc3 {[%emt 0:00:13]} 25. Qxc3 {[%emt 0:00:30]} Qxd4 {[%emt 0:09:33]} 26. Qxd4
{[%emt 0:00:30]} Nxd4 {[%emt 0:00:00]} 27. Nxc4 {[%emt 0:00:00]} Rb4 {[%emt 0:
01:29]} 28. Nxa5 {[%emt 0:00:00]} Rxa4 {[%emt 0:00:00]} 29. Nb7 {[%emt 0:00:00]
} 0-1

[Event "28th North American Open"]
[Site "Las Vegas"]
[Date "2018.12.29"]
[Round "7"]
[White "Ramer, Scott"]
[Black "Chua, Alexander"]
[Result "1-0"]
[ECO "B23"]
[WhiteElo "2200"]
[BlackElo "2291"]
[PlyCount "109"]
[EventDate "2018.12.??"]
[EventType "swiss"]
[EventRounds "9"]
[EventCountry "USA"]
[TimeControl "6600+10"]
[WhiteClock "0:11:46"]
[BlackClock "0:23:48"]

1. e4 {[%emt 0:19:40]} c5 {[%emt 0:20:01]} 2. Nc3 {[%emt 0:00:00]} Nc6 {
[%emt 0:00:00]} 3. Bb5 {[%emt 0:00:00]} Nd4 {[%emt 0:00:00]} 4. Nf3 {[%emt 0:
00:00]} g6 {[%emt 0:00:00]} 5. Ba4 {[%emt 0:00:20]} Bg7 {[%emt 0:00:23]} 6. O-O
{[%emt 0:00:00]} a6 {[%emt 0:01:32]} 7. Nxd4 {[%emt 0:00:53]} cxd4 {[%emt 0:00:
00]} 8. Ne2 {[%emt 0:00:09]} e6 {[%emt 0:00:40]} 9. c3 {[%emt 0:01:18]} b5 {
[%emt 0:01:14]} 10. Bc2 {[%emt 0:05:52]} dxc3 {[%emt 0:00:20]} 11. dxc3 {
[%emt 0:00:46]} d6 {[%emt 0:02:57]} 12. a4 {[%emt 0:04:52]} Rb8 {[%emt 0:00:53]
} 13. axb5 {[%emt 0:02:39]} axb5 {[%emt 0:00:00]} 14. Nd4 {[%emt 0:05:51]} Bd7
{[%emt 0:01:39]} 15. Ra6 {[%emt 0:02:38]} Qc7 {[%emt 0:05:45]} 16. Nb3 {
[%emt 0:11:51]} Ke7 {[%emt 0:00:34]} 17. Be3 {[%emt 0:00:56]} Rc8 {[%emt 0:04:
43]} 18. Ra7 {[%emt 0:16:31]} Qb8 {[%emt 0:00:05]} 19. Qd3 {[%emt 0:04:50]} Nf6
{[%emt 0:01:20]} 20. Rfa1 {[%emt 0:07:03]} Rhd8 {[%emt 0:10:44]} 21. R1a6 {
[%emt 0:01:13]} Ng4 {[%emt 0:09:22]} 22. Bb6 {[%emt 0:01:16]} Ne5 {[%emt 0:07:
33]} 23. Bxd8+ {[%emt 0:03:42]} Rxd8 {[%emt 0:00:00]} 24. Qe2 {[%emt 0:08:11]}
Nc6 {[%emt 0:00:40]} 25. Ra8 {[%emt 0:00:25]} Qxa8 {[%emt 0:00:27]} 26. Rxa8 {
[%emt 0:00:00]} Rxa8 {[%emt 0:00:00]} 27. Qxb5 {[%emt 0:05:16]} Ra2 {[%emt 0:
00:51]} 28. Qg5+ {[%emt 0:03:01]} Bf6 {[%emt 0:00:00]} 29. Qc1 {[%emt 0:00:00]}
h5 {[%emt 0:00:55]} 30. f4 {[%emt 0:02:29]} e5 {[%emt 0:01:03]} 31. Qb1 {
[%emt 0:01:42]} Ra8 {[%emt 0:00:00]} 32. f5 {[%emt 0:00:07]} Bg5 {[%emt 0:00:
54]} 33. Kf2 {[%emt 0:00:33]} Rb8 {[%emt 0:00:00]} 34. Ke2 {[%emt 0:00:00]} Na7
{[%emt 0:01:22]} 35. Qa2 {[%emt 0:00:31]} Nc8 {[%emt 0:01:55]} 36. Nd2 {
[%emt 0:00:00]} Rb7 {[%emt 0:02:03]} 37. fxg6 {[%emt 0:00:36]} fxg6 {[%emt 0:
00:00]} 38. Nf3 {[%emt 0:00:00]} Be6 {[%emt 0:01:08]} 39. Qb1 {[%emt 0:00:00]}
Bh6 {[%emt 0:01:27]} 40. Bd3 {[%emt 0:00:00]} Rc7 {[%emt 0:01:17]} 41. h3 {
[%emt 0:00:00]} Nb6 {[%emt 0:01:45]} 42. Ne1 {[%emt 0:00:00]} Nc4 {[%emt 0:04:
01]} 43. Nc2 {[%emt 0:00:00]} Rb7 {[%emt 0:00:00]} 44. Nb4 {[%emt 0:00:00]} Ne3
{[%emt 0:00:00]} 45. Nd5+ {[%emt 0:00:00]} Bxd5 {[%emt 0:02:38]} 46. exd5 {
[%emt 0:00:00]} Nxg2 {[%emt 0:00:00]} 47. Bxg6 {[%emt 0:00:00]} Nf4+ {[%emt 0:
00:02]} 48. Kf3 {[%emt 0:00:00]} Nxh3 {[%emt 0:00:44]} 49. Bxh5 {[%emt 0:00:00]
} Ng5+ {[%emt 0:00:12]} 50. Kg4 {[%emt 0:00:00]} Rc7 {[%emt 0:00:20]} 51. Qg6 {
[%emt 0:00:00]} Rc4+ {[%emt 0:00:00]} 52. Kg3 {[%emt 0:00:00]} Ne4+ {[%emt 0:
01:33]} 53. Kg2 {[%emt 0:00:00]} Bf4 {[%emt 0:00:35]} 54. Qe8+ {[%emt 0:00:00]}
Kf6 {[%emt 0:00:00]} 55. Qf7+ {[%emt 0:00:00]} 1-0

[Event "28th North American Open"]
[Site "Las Vegas"]
[Date "2018.12.29"]
[Round "7"]
[White "Della Morte, Pablo"]
[Black "Kollar, Romain"]
[Result "1-0"]
[ECO "B51"]
[WhiteElo "2286"]
[BlackElo "2180"]
[PlyCount "81"]
[EventDate "2018.12.??"]
[EventType "swiss"]
[EventRounds "9"]
[EventCountry "USA"]
[TimeControl "6600+10"]
[WhiteClock "0:01:17"]
[BlackClock "0:03:48"]

1. e4 {[%emt 0:19:40]} c5 {[%emt 0:19:57]} 2. Nf3 {[%emt 0:00:01]} d6 {[%emt 0:
00:00]} 3. Bb5+ {[%emt 0:01:00]} Nd7 {[%emt 0:00:00]} 4. O-O {[%emt 0:00:00]}
a6 {[%emt 0:00:00]} 5. Bd3 {[%emt 0:00:00]} Ngf6 {[%emt 0:00:00]} 6. Re1 {
[%emt 0:00:00]} b5 {[%emt 0:00:00]} 7. c4 {[%emt 0:00:00]} bxc4 {[%emt 0:04:37]
} 8. Bxc4 {[%emt 0:00:00]} e6 {[%emt 0:00:09]} 9. d4 {[%emt 0:06:42]} cxd4 {
[%emt 0:02:02]} 10. Nxd4 {[%emt 0:00:13]} Bb7 {[%emt 0:16:45]} 11. Nc3 {
[%emt 0:06:19]} Nc5 {[%emt 0:09:27]} 12. Bd5 {[%emt 0:18:24]} Qc7 {[%emt 0:23:
41]} 13. Bg5 {[%emt 0:29:37]} Be7 {[%emt 0:07:25]} 14. b4 {[%emt 0:03:23]} Nxd5
{[%emt 0:15:30]} 15. Nxd5 {[%emt 0:15:50]} Bxd5 {[%emt 0:00:36]} 16. exd5 {
[%emt 0:08:30]} Bxg5 {[%emt 0:00:27]} 17. bxc5 {[%emt 0:01:16]} dxc5 {[%emt 0:
04:00]} 18. Nxe6 {[%emt 0:00:00]} fxe6 {[%emt 0:00:54]} 19. Qh5+ {[%emt 0:00:
00]} Qf7 {[%emt 0:00:00]} 20. Qxg5 {[%emt 0:00:19]} O-O {[%emt 0:00:00]} 21.
dxe6 {[%emt 0:00:00]} Qxf2+ {[%emt 0:00:00]} 22. Kh1 {[%emt 0:00:00]} Qf5 {
[%emt 0:06:56]} 23. Qh4 {[%emt 0:01:29]} Qf4 {[%emt 0:00:00]} 24. Qh3 {[%emt 0:
00:00]} c4 {[%emt 0:00:00]} 25. e7 {[%emt 0:00:08]} Rfe8 {[%emt 0:00:00]} 26.
Qd7 {[%emt 0:00:47]} Qf7 {[%emt 0:00:00]} 27. Rac1 {[%emt 0:00:00]} h6 {
[%emt 0:00:00]} 28. Rc3 {[%emt 0:00:00]} Rac8 {[%emt 0:01:14]} 29. Rf3 {
[%emt 0:00:00]} Qg6 {[%emt 0:00:00]} 30. Ref1 {[%emt 0:00:00]} Kh7 {[%emt 0:00:
00]} 31. Rf4 {[%emt 0:00:00]} c3 {[%emt 0:00:12]} 32. Rg4 {[%emt 0:00:00]} Qh5
{[%emt 0:00:14]} 33. Qd3+ {[%emt 0:01:13]} Kh8 {[%emt 0:00:00]} 34. Rgf4 {
[%emt 0:00:02]} Rg8 {[%emt 0:00:11]} 35. Qc2 {[%emt 0:00:23]} Qc5 {[%emt 0:00:
00]} 36. Rf7 {[%emt 0:00:00]} Rce8 {[%emt 0:00:00]} 37. Re1 {[%emt 0:00:00]}
Qd4 {[%emt 0:00:00]} 38. Rf3 {[%emt 0:00:00]} Qd6 {[%emt 0:00:00]} 39. Rfe3 {
[%emt 0:00:00]} g6 {[%emt 0:00:00]} 40. Qxc3+ {[%emt 0:00:00]} Rg7 {[%emt 0:00:
00]} 41. Re6 {[%emt 0:00:17]} 1-0

[Event "28th North American Open"]
[Site "Las Vegas"]
[Date "2018.12.29"]
[Round "7"]
[White "Yang, Kevin"]
[Black "Lehmann, Spencer"]
[Result "0-1"]
[ECO "A07"]
[WhiteElo "2135"]
[BlackElo "2254"]
[PlyCount "90"]
[EventDate "2018.12.??"]
[EventType "swiss"]
[EventRounds "9"]
[EventCountry "USA"]
[TimeControl "6600+10"]
[WhiteClock "0:55:28"]
[BlackClock "0:03:13"]

1. Nf3 {[%emt 0:19:40]} d5 2. g3 {[%emt 0:00:00]} Nf6 {[%emt 0:21:13]} 3. Bg2 {
[%emt 0:00:00]} e6 {[%emt 0:00:00]} 4. O-O {[%emt 0:00:00]} c5 {[%emt 0:00:00]}
5. c4 {[%emt 0:00:00]} d4 {[%emt 0:00:00]} 6. e3 {[%emt 0:01:25]} Nc6 {[%emt 0:
00:58]} 7. exd4 {[%emt 0:00:50]} cxd4 {[%emt 0:00:52]} 8. d3 {[%emt 0:00:00]}
Bd6 {[%emt 0:03:05]} 9. b3 {[%emt 0:00:00]} O-O {[%emt 0:01:31]} 10. Na3 {
[%emt 0:05:42]} Re8 {[%emt 0:04:35]} 11. Nc2 {[%emt 0:08:45]} e5 {[%emt 0:09:
03]} 12. Bb2 {[%emt 0:00:00]} a5 {[%emt 0:27:58]} 13. Rb1 {[%emt 0:00:00]} Rb8
{[%emt 0:16:52]} 14. Na3 {[%emt 0:26:29]} Nb4 {[%emt 0:07:37]} 15. Nb5 {
[%emt 0:00:00]} Bf5 {[%emt 0:12:53]} 16. Ba3 {[%emt 0:00:00]} Bf8 {[%emt 0:02:
45]} 17. Bxb4 {[%emt 0:00:00]} axb4 {[%emt 0:00:00]} 18. Re1 {[%emt 0:00:00]}
Nd7 {[%emt 0:00:00]} 19. Nh4 {[%emt 0:00:00]} Be6 {[%emt 0:00:00]} 20. Nf3 {
[%emt 0:00:00]} Bg4 {[%emt 0:01:00]} 21. h3 {[%emt 0:00:00]} Bh5 {[%emt 0:00:
00]} 22. Qc2 {[%emt 0:00:00]} f6 {[%emt 0:00:00]} 23. Nh4 {[%emt 0:00:00]} Nc5
{[%emt 0:00:00]} 24. a3 {[%emt 0:00:00]} bxa3 {[%emt 0:00:00]} 25. Nxa3 {
[%emt 0:00:00]} e4 {[%emt 0:00:00]} 26. dxe4 {[%emt 0:00:00]} d3 {[%emt 0:00:
00]} 27. Qd2 {[%emt 0:00:00]} Na6 {[%emt 0:00:00]} 28. Nb5 {[%emt 0:00:01]} Bb4
{[%emt 0:00:00]} 29. Nc3 {[%emt 0:00:00]} b5 {[%emt 0:00:00]} 30. g4 {[%emt 0:
00:00]} Bf7 {[%emt 0:00:00]} 31. cxb5 {[%emt 0:00:00]} Rc8 {[%emt 0:00:00]} 32.
Rec1 {[%emt 0:00:00]} Nc5 {[%emt 0:00:00]} 33. Qd1 {[%emt 0:00:00]} d2 {
[%emt 0:02:34]} 34. Rc2 {[%emt 0:00:00]} Nxb3 {[%emt 0:00:00]} 35. Nd5 {
[%emt 0:00:00]} Bxd5 {[%emt 0:00:00]} 36. Rxc8 {[%emt 0:00:00]} Qxc8 {[%emt 0:
00:00]} 37. Rxb3 {[%emt 0:00:00]} Qc1 {[%emt 0:02:29]} 38. Rb1 {[%emt 0:00:00]}
Qxd1+ {[%emt 0:00:00]} 39. Rxd1 {[%emt 0:00:00]} Bb3 {[%emt 0:00:00]} 40. Bf3 {
[%emt 0:00:00]} Bxd1 {[%emt 0:00:00]} 41. Bxd1 {[%emt 0:00:00]} Rxe4 {[%emt 0:
00:00]} 42. Bb3+ {[%emt 0:00:04]} Kf8 {[%emt 0:00:00]} 43. b6 {[%emt 0:00:00]}
Re1+ {[%emt 0:00:00]} 44. Kg2 {[%emt 0:00:00]} d1=Q {[%emt 0:00:00]} 45. Bxd1 {
[%emt 0:00:00]} Rxd1 {[%emt 0:00:00]} 0-1